bitfinex/quotes_ETHUSD_20250314
["timestamp","ask_amount","ask_price","bid_price","bid_amount"]
[1741970471822,5.96446,1931.6,1931.2,10.35599]
[1741970472025,7.621585,1931.6,1931.2,10.35599]
[1741970472538,7.621585,1931.6,1931.2,5.17798]
[1741970473108,2.444425,1931.6,1931.0,6.7746]
[1741970473315,5.96458,1931.6,1930.8,6.8071]
[1741970473539,5.17755,1931.5,1931.1,5.17829]
[1741970474045,8.96437,1931.6,1931.2,5.17804]
[1741970474244,14.14164,1931.6,1931.2,5.17802]
[1741970474542,3.7873,1931.6,1930.9,5.17887]
[1741970474721,0.7873,1931.6,1931.3,5.07759]
[1741970475046,0.7873,1931.6,1931.4,5.17758]
[1741970475442,5.43,1931.7,1931.5,5.17717]
[1741970475630,0.7718,1932.0,1931.7,5.17654]
[1741970475832,6.2018,1932.2,1931.9,5.17611]
[1741970476142,5.43,1932.1,1931.9,5.17611]
[1741970476343,5.43,1932.1,1932.0,5.17598]
[1741970476516,5.9468,1932.4,1932.0,10.35196]
[1741970476711,5.43,1932.3,1932.0,5.17598]
[1741970476945,5.43,1932.3,1931.7,11.16675]
[1741970477146,5.43,1932.3,1932.0,5.17588]
[1741970477319,5.43,1932.3,1932.0,10.35168]
[1741970477654,5.43,1932.3,1932.0,5.1758]
[1741970477947,5.43,1932.3,1932.2,5.17544]
[1741970478143,0.7718,1932.4,1932.2,5.1753]
[1741970478846,5.429,1932.5,1932.1,10.35116]
[1741970478847,6.2577,1932.5,1932.1,10.35116]
[1741970479553,5.17504,1932.4,1932.0,10.35168]
[1741970479761,5.17504,1932.4,1932.0,5.17581]
[1741970480245,7.918371,1932.5,1932.1,5.17549]
[1741970480413,7.918371,1932.5,1932.1,5.17548]
[1741970480614,13.093111,1932.5,1932.1,10.35108]
[1741970480945,7.918371,1932.5,1932.2,5.17526]
[1741970481259,0.7918371,1932.4,1932.2,5.17537]
[1741970481442,6.2577,1932.5,1932.2,5.17539]
[1741970481642,6.2577,1932.5,1932.1,5.17568]
[1741970481643,6.2577,1932.5,1932.1,5.17553]
[1741970482356,11.43234,1932.5,1932.1,5.17553]
[1741970482659,11.43234,1932.5,1932.0,5.17598]
[1741970482947,11.43234,1932.5,1932.1,5.17569]
[1741970483254,13.093012,1932.5,1932.1,5.17569]
[1741970484250,13.093012,1932.5,1932.1,5.17558]
[1741970484415,13.093012,1932.5,1932.1,10.35114]
[1741970484629,13.093012,1932.5,1932.1,5.17556]
[1741970484825,13.093102,1932.5,1932.1,5.17556]
[1741970485030,1.3093102,1932.4,1932.0,5.17598]
[1741970485230,6.4843202,1932.4,1932.0,10.35184]
[1741970485633,6.4843202,1932.4,1932.0,5.17581]
[1741970485934,6.4843202,1932.4,1931.8,1.896175]
[1741970485935,0.7974,1932.2,1931.9,5.17611]
[1741970486165,5.9729,1932.2,1931.8,5.17628]
[1741970486371,7.087715,1932.2,1931.8,5.17628]
[1741970486660,1.912215,1932.2,1931.9,5.17613]
[1741970486859,0.7974,1932.2,1931.9,5.17607]
[1741970487230,5.97295,1932.2,1931.8,5.1765]
[1741970487431,10.35177,1932.1,1931.7,11.16678]
[1741970487628,5.176,1932.0,1931.6,5.17703]
[1741970487932,5.99555,1931.9,1931.6,5.17703]
[1741970488156,5.776125,1931.8,1931.5,5.17729]
[1741970488356,5.776125,1931.8,1931.4,5.17748]
[1741970488533,5.776125,1931.8,1931.4,10.35493]
[1741970488733,5.776125,1931.8,1931.5,5.17729]
[1741970489144,0.599555,1931.8,1931.3,14.47027363]
[1741970489478,5.426,1932.0,1931.8,5.17629]
[1741970489770,0.8193,1932.2,1932.0,5.17579]
[1741970490076,5.426,1932.3,1932.1,5.1756]
[1741970490255,5.426,1932.3,1932.0,5.17595]
[1741970490434,5.426,1932.3,1931.9,5.17622]
[1741970490435,10.60127,1932.3,1931.9,5.17622]
[1741970490770,12.178897,1932.3,1931.9,5.17622]
[1741970490966,0.8288,1932.2,1931.9,5.17622]
[1741970491259,11.17991,1932.2,1931.8,5.17643]
[1741970491468,0.8288,1932.2,1931.8,5.17643]
[1741970491666,0.8288,1932.2,1932.0,5.17595]
[1741970492040,0.8288,1932.2,1931.9,10.35234]
[1741970492240,0.8288,1932.2,1931.6,14.46941363]
[1741970492431,0.8288,1932.2,1931.9,5.17612]
[1741970492637,0.8288,1932.2,1932.0,5.17596]
[1741970493144,5.426,1932.3,1932.1,5.17571]
[1741970493349,5.426,1932.3,1932.1,10.35131]
[1741970493551,0.7961,1932.4,1932.1,5.1756]
[1741970493734,12.511617,1932.4,1932.1,5.1756]
[1741970494141,12.511617,1932.4,1931.9,5.17616]
[1741970494368,7.336657,1932.4,1932.1,5.17561]
[1741970494575,7.336657,1932.4,1932.1,10.35119]
[1741970494744,7.336657,1932.4,1932.1,5.17558]
[1741970495277,7.336657,1932.4,1932.1,10.35115]
[1741970495436,7.336657,1932.4,1932.1,5.17557]
[1741970496449,1.910657,1932.4,1932.2,5.17543]
[1741970496772,6.2221,1932.4,1932.1,5.17555]
[1741970497068,0.7961,1932.4,1932.2,5.17528]
[1741970497478,0.7961,1932.4,1932.1,5.17567]
[1741970497859,0.7961,1932.4,1932.2,5.17528]
[1741970498065,0.7961,1932.4,1932.1,5.17562]
[1741970498263,7.410595,1932.4,1932.0,10.35182]
[1741970498463,7.410595,1932.4,1932.0,10.35176]
[1741970498662,7.410595,1932.4,1932.0,10.35177]
[1741970498891,7.410595,1932.4,1931.9,5.17612]
[1741970498892,10.35067,1932.3,1931.9,5.17612]
[1741970499053,0.7785,1932.2,1931.9,5.17616]
[1741970499389,6.549389,1932.2,1931.9,5.17616]
[1741970499877,1.373879,1932.2,1931.9,10.35225]
[1741970500072,6.549389,1932.2,1931.9,5.17609]
[1741970500274,1.373879,1932.2,1931.6,11.98593]
[1741970500483,1.373879,1932.2,1931.9,5.17611]
[1741970500850,6.549409,1932.2,1931.8,5.17643]
[1741970501179,5.8307609,1932.1,1931.7,5.17674]
[1741970501380,5.17612,1932.0,1931.7,5.17674]
[1741970501547,10.60112,1932.0,1931.6,11.16686]
[1741970501875,10.60112,1932.0,1931.7,5.17668]
[1741970502254,0.8311,1931.8,1931.5,5.17715]
[1741970502477,1.431843,1931.8,1931.5,5.17715]
[1741970502854,6.608493,1931.8,1931.4,10.35485]
[1741970503056,6.608493,1931.8,1931.5,5.17729]
[1741970503264,1.431843,1931.8,1931.5,5.17729]
[1741970503771,1.431843,1931.8,1931.6,5.17683]
[1741970503953,0.8311,1931.8,1931.6,5.17683]
[1741970504149,11.35491,1932.0,1931.6,5.17683]
[1741970504686,16.53107,1932.0,1931.6,5.17683]
[1741970504883,11.35491,1932.0,1931.6,5.17683]
[1741970505174,16.53115,1932.0,1931.6,5.17683]
[1741970505383,6.68412935,1931.9,1931.5,5.17728]
[1741970505747,1.50784935,1931.9,1931.3,10.09679363]
[1741970505950,9.2212,1932.2,1931.9,5.17604]
[1741970506180,6.2212,1932.2,1932.0,5.1758]
[1741970506584,6.2212,1932.2,1932.0,10.35168]
[1741970506951,5.424,1932.2,1932.0,10.35168]
[1741970507156,0.8094,1932.3,1932.1,5.17571]
[1741970507364,3.0,1932.4,1932.2,10.35048]
[1741970507568,0.8094,1932.8,1932.4,0.8264]
[1741970507772,5.424,1932.8,1932.6,5.17428]
[1741970507962,5.424,1932.8,1932.6,5.17419]
[1741970508174,0.01,1932.9,1932.8,5.17384]
[1741970509274,0.01,1932.9,1932.8,5.99764]
[1741970509455,0.01,1932.9,1932.8,7.44506336]
[1741970509986,0.01,1932.9,1932.8,5.17384]
[1741970510815,0.01,1932.9,1932.7,5.17391]
[1741970510957,0.01,1932.9,1932.8,5.17384]
[1741970512693,0.01,1932.9,1932.6,10.34858]
[1741970512989,0.01,1932.9,1932.5,5.17456]
[1741970512990,5.18359,1932.9,1932.5,5.17456]
[1741970513190,5.422,1932.8,1932.6,5.17424]
[1741970514194,5.422,1932.8,1932.7,5.1741]
[1741970514567,5.422,1932.8,1932.6,5.1743]
[1741970514774,5.422,1932.8,1932.6,5.17422]
[1741970515165,5.422,1932.8,1932.7,5.1741]
[1741970515491,0.01,1932.9,1932.8,5.17384]
[1741970517793,0.01,1932.9,1932.8,5.98437477]
[1741970518095,0.01,1932.9,1932.8,5.93264]
[1741970518336,0.01,1932.9,1932.8,5.98436913]
[1741970518796,0.01,1932.9,1932.8,5.93264]
[1741970519002,0.01,1932.9,1932.8,5.17384]
[1741970519577,0.01,1932.9,1932.7,5.1741]
[1741970520776,0.01,1932.9,1932.6,5.17432]
[1741970520980,5.702025,1932.9,1932.5,5.17447]
[1741970521194,0.7585,1932.8,1932.6,5.17425]
[1741970521518,0.7585,1932.8,1932.5,5.17462]
[1741970521669,0.7585,1932.8,1932.6,5.17436]
[1741970522242,0.7585,1932.8,1932.5,5.17453]
[1741970522441,1.4045485,1932.8,1932.5,5.17453]
[1741970522721,1.4045485,1932.8,1932.6,5.17433]
[1741970523022,1.4045485,1932.8,1932.5,5.17453]
[1741970523219,1.4045485,1932.8,1932.6,5.17434]
[1741970523405,5.419,1932.7,1932.5,5.17453]
[1741970523600,5.419,1932.7,1932.6,5.17437]
[1741970524200,5.419,1932.7,1932.3,5.17497]
[1741970524516,5.419,1932.7,1932.4,5.17472]
[1741970524721,5.419,1932.7,1932.5,10.34892]
[1741970525423,5.419,1932.7,1932.6,5.17437]
[1741970525922,0.7585,1932.8,1932.6,5.17437]
[1741970526124,6.1775,1932.8,1932.6,5.17437]
[1741970526313,6.1775,1932.8,1932.5,5.17443]
[1741970526314,6.79625,1932.8,1932.5,5.17443]
[1741970527594,6.79625,1932.8,1932.5,5.1744]
[1741970527800,1.37725,1932.8,1932.6,5.17426]
[1741970528002,5.419,1932.8,1932.6,5.17423]
[1741970528227,5.419,1932.8,1932.3,5.17515]
[1741970528228,5.429,1932.9,1932.8,5.17384]
[1741970528726,0.01,1932.9,1932.8,5.17384]
[1741970533498,0.01,1932.9,1932.7,5.17402]
[1741970533695,0.8116,1932.8,1932.5,5.17454]
[1741970534106,0.8116,1932.8,1932.5,5.17449]
[1741970534322,6.2296,1932.8,1932.5,5.17454]
[1741970534530,7.370918,1932.8,1932.6,5.17431]
[1741970534731,7.370918,1932.8,1932.5,5.17453]
[1741970535027,6.2296,1932.8,1932.6,5.17424]
[1741970535232,5.1744,1932.6,1932.3,5.17494]
[1741970535412,10.34895,1932.6,1932.2,5.17543]
[1741970535733,5.17418,1932.7,1932.3,5.17515]
[1741970535928,0.517418,1932.6,1932.2,5.17544]
[1741970536128,0.8324,1932.5,1932.2,5.17544]
[1741970536436,5.17491,1932.4,1931.9,5.17611]
[1741970536734,11.42468,1932.3,1932.0,5.17589]
[1741970536932,6.2494,1932.3,1932.0,5.17589]
[1741970537125,11.42471,1932.3,1931.9,5.17611]
[1741970537715,11.42471,1932.3,1932.0,5.17596]
[1741970537915,13.084672,1932.3,1932.0,5.17596]
[1741970538116,7.909362,1932.3,1932.0,5.17586]
[1741970538516,7.909362,1932.3,1931.7,5.96081]
[1741970538517,5.417,1932.3,1932.2,5.17544]
[1741970538721,5.417,1932.3,1932.1,5.1755]
[1741970538911,5.417,1932.3,1932.2,5.17544]
[1741970540246,0.7666,1932.7,1932.4,5.17491]
[1741970540421,5.417,1932.6,1932.4,5.17491]
[1741970540616,0.7666,1932.7,1932.6,5.17437]
[1741970540843,0.01,1932.9,1932.8,5.17384]
[1741970542869,0.7956,1932.9,1932.5,5.96192]
[1741970543048,5.17395,1932.8,1932.3,5.17504]
[1741970543254,5.96927,1932.9,1932.3,5.22691646]
[1741970543449,0.596927,1932.8,1932.6,5.17423]
[1741970543642,5.417,1932.7,1932.6,10.34835]
[1741970544459,5.417,1932.7,1932.6,5.17412]
[1741970546470,6.2116,1932.9,1932.7,5.17396]
[1741970547085,0.01,1932.9,1932.8,5.17384]
[1741970548247,0.01,1932.9,1932.7,5.17393]
[1741970548469,3.0,1933.3,1932.6,5.17436]
[1741970548470,5.16494,1936.2,1934.1,0.81042917]
[1741970548670,5.86955802,1936.3,1935.8,3.30249363]
[1741970548671,1.73388038,1936.3,1935.8,3.30249363]
[1741970548865,0.9233237,1936.3,1936.0,5.16528]
[1741970549088,0.9233237,1936.3,1935.9,5.16539]
[1741970549289,0.9233237,1936.3,1936.0,5.16528]
[1741970549490,0.9233237,1936.3,1935.9,5.16539]
[1741970549699,5.16498,1936.2,1935.8,0.05165323]
[1741970549896,5.629,1936.0,1935.2,3.30249363]
[1741970550099,5.69831072,1936.1,1935.1,3.30249363]
[1741970550302,0.53308072,1936.1,1935.1,4.00684032]
[1741970550594,0.0150752,1936.1,1935.8,5.16566]
[1741970550804,5.2796837,1936.3,1935.7,5.16608]
[1741970550805,5.16478,1936.2,1935.7,10.33205]
[1741970550985,0.1151237,1936.3,1935.8,5.16572]
[1741970551194,0.1151237,1936.3,1935.6,5.1661]
[1741970551373,10.81388,1936.2,1935.7,5.16594]
[1741970551575,6.728388,1936.1,1935.6,5.1661]
[1741970551768,6.728388,1936.1,1935.5,9.17322032]
[1741970552201,6.728388,1936.1,1935.5,14.33966032]
[1741970552404,6.728388,1936.1,1935.5,9.17322032]
[1741970552701,6.728388,1936.1,1935.6,5.21800738]
[1741970552902,0.6728388,1936.0,1935.6,5.21800738]
[1741970553081,0.6728388,1936.0,1935.5,9.17345032]
[1741970553282,5.8381888,1936.0,1935.5,4.00684032]
[1741970553483,5.1661,1935.7,1935.3,4.00684032]
[1741970553681,15.96891,1935.6,1935.0,9.17460032]
[1741970553901,1.596891,1935.5,1935.0,9.17460032]
[1741970554069,1.596891,1935.5,1935.1,5.16767]
[1741970554274,10.80239,1935.6,1935.0,9.17460032]
[1741970554577,5.636,1935.6,1935.0,14.34243032]
[1741970554776,5.636,1935.6,1935.0,9.17460032]
[1741970555278,5.636,1935.6,1935.1,10.33511]
[1741970555573,5.636,1935.6,1935.1,5.1675]
[1741970555786,5.636,1935.6,1935.0,4.00684032]
[1741970555787,6.716211,1935.6,1935.0,4.00684032]
[1741970555981,11.882711,1935.6,1935.1,5.16767]
[1741970556182,6.716211,1935.6,1935.1,10.38680129]
[1741970556478,11.882581,1935.6,1935.1,5.21913129]
[1741970556676,6.716211,1935.6,1935.2,5.16728]
[1741970557502,0.6716211,1935.5,1935.1,5.16762]
[1741970557702,5.16569,1935.9,1935.2,0.05167131]
[1741970557905,5.16569,1935.9,1935.4,5.16662]
[1741970558071,5.643,1935.8,1935.5,5.16651]
[1741970558274,17.2191237,1936.3,1935.9,5.1654]
[1741970558475,5.641,1936.2,1935.9,10.3308]
[1741970558695,0.1151237,1936.3,1935.9,5.1654]
[1741970558895,5.648,1936.2,1935.9,5.1654]
[1741970559097,5.648,1936.2,1935.8,5.16582]
[1741970559376,5.648,1936.2,1935.6,9.17299032]
[1741970559377,5.16506,1936.1,1935.7,5.16607]
[1741970559600,10.81296,1936.2,1935.8,5.16579]
[1741970559803,1.081296,1936.1,1935.8,5.16579]
[1741970560003,5.648,1936.2,1935.9,5.16537]
[1741970560505,5.648,1936.2,1935.7,5.16595]
[1741970560700,5.16538,1936.0,1935.6,5.16618]
[1741970561001,5.16558,1935.9,1935.5,5.16656]
[1741970561186,5.16584,1935.8,1935.4,9.17365032]
[1741970561382,6.275822,1935.8,1935.4,5.16681]
[1741970561705,5.1662,1935.7,1935.3,5.16709]
[1741970561873,15.97551,1935.7,1935.3,5.16709]
[1741970562075,5.643,1935.7,1935.3,5.16705]
[1741970562396,5.16645,1935.6,1935.2,14.34146032]
[1741970562596,5.16645,1935.6,1935.3,5.16712]
[1741970562802,10.80935,1935.7,1935.3,10.33413]
[1741970563007,10.80935,1935.7,1935.3,5.16701]
[1741970563209,5.643,1935.7,1935.2,4.00684032]
[1741970563505,5.643,1935.7,1935.4,10.33352]
[1741970563708,5.643,1935.7,1935.4,5.16663]
[1741970564004,5.643,1935.7,1935.4,10.33341]
[1741970564212,5.643,1935.7,1935.4,5.16663]
[1741970564801,10.8091,1935.7,1935.3,10.33416]
[1741970565009,10.8091,1935.7,1935.3,5.16703]
[1741970565310,10.8091,1935.7,1935.0,5.16793]
[1741970565311,5.16718,1935.3,1935.0,5.16793]
[1741970565608,10.78768,1935.2,1934.7,5.16866]
[1741970565784,5.16796,1935.0,1934.6,5.16894]
[1741970565985,5.16796,1935.0,1934.6,5.16892]
[1741970566398,5.16796,1935.0,1934.6,5.16885]
[1741970566813,5.16796,1935.0,1934.5,5.9203]
[1741970567020,5.62,1935.1,1934.4,5.16953]
[1741970567021,5.16849,1934.8,1934.4,5.16953]
[1741970567207,5.16849,1934.8,1934.4,5.16937]
[1741970567413,5.16849,1934.8,1934.3,10.33949]
[1741970567414,5.16887,1934.7,1934.3,10.33949]
[1741970567611,5.16887,1934.7,1934.4,5.16955]
[1741970568006,5.16887,1934.7,1934.3,10.33937]
[1741970568312,5.16943,1934.5,1934.1,11.16021]
[1741970568479,5.16957,1934.4,1934.1,5.17021]
[1741970568687,5.16997,1934.3,1933.9,5.99]
[1741970568895,5.16941,1934.5,1934.0,5.17036]
[1741970569095,10.33893,1934.5,1934.0,10.34084]
[1741970569297,5.16941,1934.5,1934.1,5.17029]
[1741970569498,5.16957,1934.4,1934.0,5.17036]
[1741970569892,10.33936,1934.4,1934.0,5.17036]
[1741970570098,5.16957,1934.4,1934.0,5.17036]
[1741970570318,5.16957,1934.4,1934.0,11.374984]
[1741970570510,5.16957,1934.4,1934.0,6.204684]
[1741970570685,5.16957,1934.4,1934.0,6.204564]
[1741970570887,5.16957,1934.4,1934.0,5.17044]
[1741970571089,5.16957,1934.4,1934.0,10.34082]
[1741970571414,5.16992,1934.3,1933.9,5.17073]
[1741970571615,5.16957,1934.4,1934.0,5.1705]
[1741970571825,5.16929,1934.5,1934.1,5.17029]
[1741970571991,5.16965,1934.4,1934.0,5.17055]
[1741970572191,5.16965,1934.4,1934.0,6.20986217]
[1741970572809,10.33942,1934.4,1934.0,6.20986217]
[1741970573010,5.16989,1934.3,1934.0,1.03931217]
[1741970573221,5.16962,1934.4,1934.0,5.17052]
[1741970573604,10.33937,1934.4,1934.0,5.17052]
[1741970574020,5.16931,1934.5,1934.0,5.17058]
[1741970574315,5.16931,1934.5,1933.9,5.22257173]
[1741970574316,5.16972,1934.4,1933.9,5.22257173]
[1741970574533,5.16972,1934.4,1934.0,5.17042]
[1741970574689,10.33949,1934.4,1934.0,5.17042]
[1741970574894,5.16995,1934.3,1933.9,5.17089]
[1741970575119,5.95663,1934.4,1934.0,5.17061]
[1741970575635,11.12632,1934.4,1933.9,6.204965]
[1741970575935,5.16987,1934.3,1933.9,5.17076]
[1741970576236,5.95663,1934.4,1934.0,5.17049]
[1741970576589,5.95663,1934.4,1934.0,5.1704]
[1741970577015,11.12638,1934.4,1934.0,5.1704]
[1741970577230,5.1699,1934.3,1934.0,5.1704]
[1741970577393,5.1699,1934.3,1933.9,5.22253182]
[1741970577726,10.33999,1934.3,1934.0,0.52225318]
[1741970577929,5.95658,1934.4,1934.0,0.52225318]
[1741970578090,5.16985,1934.3,1934.0,5.69287318]
[1741970578564,5.16985,1934.3,1934.0,0.52225318]
[1741970579047,5.17012,1934.2,1933.9,5.17075]
[1741970579254,5.16985,1934.3,1933.9,5.17084]
[1741970579433,5.16985,1934.3,1934.1,0.76371433]
[1741970579635,5.17009,1934.2,1934.1,0.76371433]
[1741970581125,5.17039,1934.1,1933.8,5.17106]
[1741970581329,10.70239,1934.1,1933.8,6.804298]
[1741970581530,5.17075,1934.0,1933.8,1.633238]
[1741970581943,10.70239,1934.1,1933.8,1.633238]
[1741970582771,5.17064,1934.0,1933.8,1.633238]
[1741970582946,5.17064,1934.0,1933.7,5.99]
[1741970583146,5.17089,1933.9,1933.7,5.99]
[1741970583473,5.17124,1933.8,1933.6,5.99]
[1741970583772,5.17125,1933.8,1933.5,5.17182]
[1741970583936,5.17125,1933.8,1933.5,5.768092]
[1741970584364,5.9766,1933.9,1933.5,5.768092]
[1741970584570,5.17125,1933.8,1933.5,5.81980575]
[1741970584774,5.9766,1933.9,1933.5,5.81980575]
[1741970585159,0.8163,1934.1,1933.6,5.17167]
[1741970585475,5.515,1934.1,1933.8,5.17104]
[1741970585767,10.68546,1934.1,1933.7,5.688477]
[1741970586080,10.68546,1934.1,1933.8,5.17115]
[1741970586273,10.68546,1934.1,1933.7,5.688477]
[1741970586274,5.17063,1934.0,1933.7,0.517167]
[1741970586771,5.96608,1933.9,1933.5,5.768092]
[1741970586970,5.96608,1933.9,1933.5,5.81980468]
[1741970587142,5.96608,1933.9,1933.6,5.17158]
[1741970587345,0.7951,1933.9,1933.6,5.17157]
[1741970587843,5.515,1934.1,1933.7,0.05171265]
[1741970588039,0.8281,1934.3,1933.8,5.17098]
[1741970588273,0.8281,1934.3,1933.9,5.687888]
[1741970588454,5.514,1934.2,1934.0,5.17051]
[1741970588972,5.512,1934.3,1934.0,5.17048]
[1741970589277,10.69014,1934.6,1934.2,5.16992]
[1741970589443,10.69014,1934.6,1934.1,0.05170168]
[1741970589444,5.1694,1934.5,1934.1,5.17027]
[1741970589643,5.16997,1934.3,1934.0,5.99]
[1741970589845,5.97426,1934.1,1934.0,5.99]
[1741970590040,5.97426,1934.1,1933.7,5.17142]
[1741970590256,5.97426,1934.1,1933.5,5.99]
[1741970590257,5.17119,1933.8,1933.5,5.17187]
[1741970590668,5.17119,1933.8,1933.4,5.17221]
[1741970590856,5.17119,1933.8,1933.5,5.17195]
[1741970591051,5.17119,1933.8,1933.5,5.17194]
[1741970591377,5.17181,1933.6,1933.2,5.68086744]
[1741970591675,5.519,1933.5,1933.4,5.17223]
[1741970592379,13.34161,1934.0,1933.4,5.172]
[1741970592380,5.521,1934.0,1933.4,5.172]
[1741970592574,5.521,1934.0,1933.8,5.17109]
[1741970593153,5.521,1934.0,1933.7,5.17141]
[1741970593982,5.521,1934.0,1933.7,10.34266]
[1741970594280,5.521,1934.0,1933.9,5.17089]
[1741970594656,3.8288,1934.4,1934.1,5.1702]
[1741970594881,9.3528,1934.4,1934.2,5.16995]
[1741970595068,5.53,1934.5,1934.4,5.16944]
[1741970595249,5.53,1934.5,1934.2,6.204119]
[1741970595449,5.529,1934.6,1934.3,5.16972]
[1741970595677,5.527,1934.6,1934.4,0.05169471]
[1741970595882,5.527,1934.6,1934.2,6.203949]
[1741970596054,10.69618,1934.6,1934.2,6.203949]
[1741970596377,10.69208,1934.6,1934.2,6.203949]
[1741970596577,5.523,1934.6,1934.2,6.255646]
[1741970596884,5.523,1934.6,1934.3,5.7953846]
[1741970597061,5.523,1934.6,1934.3,6.56223047]
[1741970597275,10.69206,1934.6,1934.3,6.56209047]
[1741970597596,5.16944,1934.5,1934.3,0.76684587]
[1741970597800,5.16956,1934.4,1934.3,0.76684587]
[1741970597994,11.51335,1934.6,1934.3,0.76684587]
[1741970598504,11.51335,1934.6,1934.2,5.16989]
[1741970599298,11.01338,1934.6,1934.3,5.16982]
[1741970599595,10.33882,1934.5,1934.1,5.17032]
[1741970599795,5.16932,1934.5,1934.1,5.17016]
[1741970600497,5.16988,1934.3,1934.0,0.61490644]
[1741970600799,5.16988,1934.3,1934.0,5.78549644]
[1741970601171,5.16988,1934.3,1934.0,0.61490644]
[1741970601599,5.16988,1934.3,1933.9,10.3414]
[1741970601799,10.33926,1934.4,1933.9,5.17086]
[1741970601997,3.0,1934.5,1934.1,5.17016]
[1741970602200,8.16943,1934.5,1934.2,5.17007]
[1741970602695,8.1693,1934.5,1934.0,5.17051]
[1741970602896,10.33954,1934.4,1934.0,5.17048]
[1741970603109,5.16976,1934.4,1934.0,10.34095]
[1741970603304,10.33953,1934.4,1934.0,5.17047]
[1741970603675,5.16988,1934.3,1933.9,5.17088]
[1741970603882,10.33988,1934.3,1933.9,5.17088]
[1741970604081,5.17013,1934.2,1933.8,6.26581497]
[1741970604520,10.68752,1934.1,1933.8,1.09478497]
[1741970604666,5.17083,1934.0,1933.8,0.61462258]
[1741970605003,5.17089,1933.9,1933.8,0.61462258]
[1741970605297,5.17104,1933.9,1933.5,5.17188]
[1741970605499,5.17098,1933.9,1933.4,5.96619]
[1741970605680,5.17098,1933.9,1933.4,0.7942]
[1741970606002,8.512,1934.2,1933.9,5.17077]
[1741970606170,8.512,1934.2,1933.9,5.17078]
[1741970606372,13.68222,1934.2,1933.8,5.17113]
[1741970606612,5.16885,1934.7,1933.9,0.82550782]
[1741970606807,10.33894,1934.5,1934.1,5.17031]
[1741970607010,5.16946,1934.5,1934.1,5.17028]
[1741970607210,6.908,1935.3,1934.3,0.8271]
[1741970607416,5.16826,1934.9,1934.5,5.16916]
[1741970607622,10.33659,1934.9,1934.5,5.16916]
[1741970607825,0.38562209,1935.3,1934.6,0.8295]
[1741970608113,5.536,1935.3,1935.0,5.1678]
[1741970608448,5.536,1935.3,1934.7,11.15869]
[1741970608449,5.16756,1935.2,1934.7,11.15869]
[1741970608570,5.536,1935.3,1934.8,5.16849]
[1741970608769,5.536,1935.3,1934.8,5.16831]
[1741970608994,6.606289,1935.3,1934.8,5.16831]
[1741970609190,6.237439,1935.3,1934.9,0.8034]
[1741970609371,5.16715,1935.3,1934.9,5.97156]
[1741970609695,5.16713,1935.4,1935.0,5.16784]
[1741970610011,5.97519,1935.5,1935.1,5.16767]
[1741970610207,11.51019,1935.5,1935.1,5.16767]
[1741970610383,5.16691,1935.4,1935.0,5.16788]
[1741970610589,1.66771,1935.4,1934.7,5.99]
[1741970610787,4.66771,1935.4,1934.7,5.99]
[1741970611189,5.16762,1935.2,1934.7,11.15854]
[1741970611390,5.16794,1935.1,1934.7,11.15854]
[1741970611587,5.16809,1935.0,1934.6,5.9298]
[1741970611801,5.16809,1935.0,1934.3,5.99]
[1741970611802,5.99359,1935.0,1934.5,5.16922]
[1741970611982,5.99359,1935.0,1934.6,5.16897]
[1741970612331,0.8255,1935.0,1934.6,5.16887]
[1741970612479,0.8255,1935.0,1934.7,5.16857]
[1741970613125,0.7967,1935.3,1934.7,1.033744]
[1741970613326,5.516,1935.2,1934.6,5.99]
[1741970613627,10.68363,1935.2,1934.8,5.16822]
[1741970613910,0.7967,1935.3,1935.0,5.16782]
[1741970614110,6.3147,1935.3,1935.0,5.16782]
[1741970614284,5.518,1935.3,1934.7,5.93424]
[1741970614484,5.16751,1935.2,1934.8,5.16835]
[1741970614684,5.1677,1935.1,1934.7,7.126664]
[1741970614924,10.68539,1935.3,1934.8,5.16839]
[1741970615221,10.68539,1935.3,1934.7,7.126664]
[1741970615222,5.16782,1935.1,1934.7,7.126664]
[1741970615428,5.16782,1935.1,1934.7,5.93424]
[1741970615725,5.16782,1935.1,1934.7,5.93411]
[1741970616011,5.16782,1935.1,1934.7,11.10271]
[1741970616213,5.16757,1935.2,1934.8,5.16847]
[1741970616407,10.68518,1935.3,1934.9,5.16809]
[1741970616609,17.437778,1935.3,1934.9,5.16809]
[1741970616787,12.270388,1935.3,1934.9,5.16805]
[1741970617112,5.518,1935.3,1934.9,5.16805]
[1741970617320,5.518,1935.3,1935.0,5.1677]
[1741970617689,5.16759,1935.2,1934.8,5.16847]
[1741970618217,10.66424,1935.3,1934.9,5.16803]
[1741970618388,15.83158,1935.3,1934.9,5.16803]
[1741970618583,5.16746,1935.2,1934.9,5.16803]
[1741970618785,3.0,1935.4,1934.8,0.05168142]
[1741970618995,8.49,1935.4,1935.1,5.16748]
[1741970619516,5.96586,1935.5,1935.2,5.16732]
[1741970619683,11.45786,1935.5,1935.2,5.16732]
[1741970620382,11.45786,1935.5,1935.2,6.20077]
[1741970620383,6.2912,1935.5,1935.2,6.20077]
[1741970620606,6.2912,1935.5,1935.3,5.16705]
[1741970620807,6.2912,1935.5,1935.2,5.16728]
[1741970621388,0.7992,1935.5,1935.2,5.16728]
[1741970621588,0.7992,1935.5,1935.2,5.1674]